fUSD/lending_fUSD_20240428
["ID","MTS","AMOUNT","RATE_DAILY","PERIOD"]
[324795445,1714335098216,-500.0,0.00012328,2]
[324795446,1714335098227,-151.0,0.00012328,2]
[324795447,1714335098239,-217.372388,0.00012328,2]
[324795448,1714335098249,-534.03,0.00012328,2]
[324795450,1714335098258,-151.0,0.00012328,2]
[324795451,1714335098268,-5395.03,0.00012328,2]
[324795452,1714335098278,-500.0,0.00012328,2]
[324795453,1714335098288,-500.0,0.00012328,2]
[324795454,1714335098298,-500.0,0.00012328,2]
[324795455,1714335098308,-500.0,0.00012328,2]
[324795456,1714335098318,-564.8,0.00012328,2]
[324795457,1714335098330,-504.30538713,0.00012328,2]
[324795458,1714335098340,-966.12,0.00012328,2]
[324795459,1714335098350,-665.52,0.00012328,2]
[324795460,1714335098360,-500.0,0.00012328,2]
[324795461,1714335098370,-439.856673,0.00012328,2]
[324795462,1714335098382,-500.0,0.00012328,2]
[324795463,1714335098396,-500.0,0.00012328,2]
[324795464,1714335098407,-203.922933,0.00012328,2]
[324795465,1714335098417,-439.856673,0.00012328,2]
[324795466,1714335098427,-500.0,0.00012328,2]
[324795467,1714335098437,-500.0,0.00012328,2]
[324795468,1714335098447,-608.01,0.00012328,2]
[324795469,1714335098459,-500.0,0.00012328,2]
[324795470,1714335098470,-500.0,0.00012328,2]
[324795471,1714335098481,-243.66,0.00012328,2]
[324795472,1714335098491,-500.0,0.00012328,2]
[324795473,1714335098501,-706.48,0.00012328,2]
[324795474,1714335098511,-602.98,0.00012328,2]
[324795475,1714335098522,-724.080274,0.00012328,2]
[324795476,1714335098532,-206.1864573,0.00012328,2]
[324795477,1714335098542,-500.0,0.00012328,2]
[324795478,1714335098552,-500.0,0.00012328,2]
[324795479,1714335098562,-500.0,0.00012328,2]
[324795480,1714335098574,-1824.84,0.00012328,2]
[324795481,1714335098586,-911.62,0.00012328,2]
[324795482,1714335098596,-1415.41,0.00012328,2]
[324795483,1714335098606,-724.080274,0.00012328,2]
[324795484,1714335098616,-500.0,0.00012328,2]
[324795485,1714335098627,-500.0,0.00012328,2]
[324795486,1714335098637,-500.0,0.00012328,2]
[324795487,1714335098647,-500.0,0.00012328,2]
[324795488,1714335098658,-1589.3,0.00012328,2]
[324795489,1714335098668,-500.0,0.00012328,2]
[324795490,1714335098677,-151.0,0.00012328,2]
[324795491,1714335098687,-520.83,0.00012328,2]
[324795492,1714335098697,-500.0,0.00012328,2]
[324795493,1714335098707,-684.215025,0.00012328,2]
[324795494,1714335098717,-500.0,0.00012328,2]
[324795495,1714335098727,-642.23090692,0.00012328,2]
[324795496,1714335098740,-500.0,0.00012328,2]
[324795497,1714335098750,-500.0,0.00012328,2]
[324795498,1714335098760,-684.215025,0.00012328,2]
[324795499,1714335098769,-500.0,0.00012328,2]
[324795500,1714335098779,-500.0,0.00012328,2]
[324795501,1714335098789,-1830.16,0.00012328,2]
[324795502,1714335098799,-281.639809,0.00012328,2]
[324795503,1714335098809,-2000.0,0.00012328,2]
[324795504,1714335098819,-505.70799736,0.00012328,2]
[324795505,1714335098831,-281.639809,0.00012328,2]
[324795506,1714335098840,-447.05,0.00012328,2]
[324795507,1714335098850,-1311.58,0.00012328,2]
[324795508,1714335098860,-632.72,0.00012328,2]
[324795509,1714335098871,-190.425428,0.00012328,2]
[324795510,1714335098881,-500.0,0.00012328,2]
[324795511,1714335098890,-190.425428,0.00012328,2]
[324795512,1714335098900,-500.0,0.00012328,2]
[324795513,1714335098910,-662.93,0.00012328,2]
[324795514,1714335098920,-914.28,0.00012328,2]
[324795515,1714335098931,-500.0,0.00012328,2]
[324795516,1714335098941,-151.0,0.00012328,2]
[324795517,1714335098952,-500.0,0.00012328,2]
[324795518,1714335098961,-500.0,0.00012328,2]
[324795519,1714335098972,-3422.18,0.00012328,2]
[324795520,1714335098981,-500.0,0.00012328,2]
[324795521,1714335098992,-500.0,0.00012328,2]
[324795522,1714335099001,-500.0,0.00012328,2]
[324795523,1714335099011,-500.0,0.00012328,2]
[324795524,1714335099022,-767.88,0.00012328,2]
[324795525,1714335099032,-500.92,0.00012328,2]
[324795526,1714335099043,-500.0,0.00012328,2]
[324795527,1714335099053,-735.24,0.00012328,2]
[324795528,1714335099063,-706.69,0.00012328,2]
[324795529,1714335099074,-500.0,0.00012328,2]
[324795530,1714335099084,-151.0,0.00012328,2]
[324795531,1714335099094,-500.0,0.00012328,2]
[324795532,1714335099104,-259.650878,0.00012328,2]
[324795533,1714335099113,-1342.45,0.00012328,2]
[324795534,1714335099123,-533.84,0.00012328,2]
[324795535,1714335099133,-788.02,0.00012328,2]
[324795536,1714335099143,-2092.94,0.00012328,2]
[324795537,1714335099153,-151.0,0.00012328,2]
[324795538,1714335099163,-259.650878,0.00012328,2]
[324795539,1714335099173,-500.0,0.00012328,2]
[324795540,1714335099184,-2167.16,0.00012328,2]
[324795541,1714335099194,-1698.03,0.00012328,2]
[324795542,1714335099204,-151.0,0.00012328,2]
[324795543,1714335099216,-554.604274,0.00012328,2]
[324795544,1714335099227,-500.0,0.00012328,2]
[324795545,1714335099239,-500.0,0.00012328,2]
[324795546,1714335099249,-1776.941553,0.00012328,2]
[324795547,1714335099259,-554.604274,0.00012328,2]
[324795548,1714335099268,-500.0,0.00012328,2]
[324795549,1714335099279,-500.0,0.00012328,2]
[324795550,1714335099289,-5663.56,0.00012328,2]
[324795551,1714335099299,-500.0,0.00012328,2]
[324795552,1714335099308,-500.0,0.00012328,2]
[324795553,1714335099319,-1776.941553,0.00012328,2]
[324795554,1714335099328,-709.07,0.00012328,2]
[324795555,1714335099338,-638.56470869,0.00012328,2]
[324795556,1714335099348,-500.0,0.00012328,2]
[324795557,1714335099360,-5318.53,0.00012328,2]
[324795558,1714335099372,-500.0,0.00012328,2]
[324795559,1714335099382,-576.42,0.00012328,2]
[324795560,1714335099397,-673.78,0.00012328,2]
[324795561,1714335099408,-730.03,0.00012328,2]
[324795562,1714335099417,-500.0,0.00012328,2]
[324795563,1714335099430,-500.0,0.00012328,2]
[324795564,1714335099440,-1119.99,0.00012328,2]
[324795565,1714335099453,-500.0,0.00012328,2]
[324795566,1714335099465,-3883.79,0.00012328,2]
[324795567,1714335099475,-500.0,0.00012328,2]
[324795568,1714335099485,-4497.99,0.00012328,2]
[324795569,1714335099497,-280.501871,0.00012328,2]
[324795570,1714335099507,-505.17559611,0.00012328,2]
[324795571,1714335099517,-1502.91,0.00012328,2]
[324795572,1714335099529,-319.09967699,0.00012328,2]
[324795573,1714335099540,-500.0,0.00012328,2]
[324795574,1714335099553,-505.03,0.00012328,2]
[324795575,1714335099564,-1373.5,0.00012328,2]
[324795576,1714335099576,-1354.41,0.00012328,2]
[324795577,1714335099587,-10290.32,0.00012328,2]
[324795578,1714335099599,-2176.76,0.00012328,2]
[324795579,1714335099610,-1071.21,0.00012328,2]
[324795580,1714335099620,-500.0,0.00012328,2]
[324795581,1714335099630,-500.0,0.00012328,2]
[324795582,1714335099640,-639.11,0.00012328,2]
[324795583,1714335099652,-500.0,0.00012328,2]
[324795584,1714335099663,-1877.516642,0.00012328,2]
[324795585,1714335099672,-500.0,0.00012328,2]
[324795586,1714335099683,-500.0,0.00012328,2]
[324795587,1714335099694,-1357.3,0.00012328,2]
[324795588,1714335099704,-8156.81,0.00012328,2]
[324795589,1714335099714,-1877.516642,0.00012328,2]
[324795590,1714335099724,-500.0,0.00012328,2]
[324795591,1714335099735,-583.22,0.00012328,2]
[324795592,1714335099748,-580.74,0.00012328,2]
[324795593,1714335099758,-1739.27,0.00012328,2]
[324795594,1714335099768,-500.0,0.00012328,2]
[324795595,1714335099777,-500.0,0.00012328,2]
[324795596,1714335099788,-1338.92,0.00012328,2]
[324795597,1714335099797,-500.0,0.00012328,2]
[324795598,1714335099807,-1602.59,0.00012328,2]
[324795599,1714335099817,-151.0,0.00012328,2]
[324795600,1714335099828,-600.55836871,0.00012328,2]
[324795601,1714335099838,-500.0,0.00012328,2]
[324795602,1714335099848,-3585.18,0.00012328,2]
[324795603,1714335099858,-3404.45,0.00012328,2]
[324795604,1714335099870,-500.0,0.00012328,2]
[324795605,1714335099880,-3861.32,0.00012328,2]
[324795606,1714335099890,-584.32,0.00012328,2]
[324795607,1714335099901,-1528.83,0.00012328,2]
[324795608,1714335099911,-1912.47,0.00012328,2]
[324795609,1714335099923,-2219.685263,0.00012328,2]
[324795610,1714335099933,-585.64441581,0.00012328,2]
[324795611,1714335099944,-500.0,0.00012328,2]
[324795612,1714335099954,-500.0,0.00012328,2]
[324795613,1714335099964,-500.0,0.00012328,2]
[324795614,1714335099974,-2219.685263,0.00012328,2]
[324795615,1714335099985,-500.0,0.00012328,2]
[324795616,1714335099995,-530.84,0.00012328,2]
[324795617,1714335100004,-1414.12,0.00012328,2]
[324795618,1714335100014,-500.0,0.00012328,2]
[324795619,1714335100024,-1402.340596,0.00012328,2]
[324795620,1714335100034,-500.0,0.00012328,2]
[324795621,1714335100044,-500.0,0.00012328,2]
[324795622,1714335100055,-4357.97,0.00012328,2]
[324795623,1714335100065,-3715.69,0.00012328,2]
[324795624,1714335100075,-1402.340596,0.00012328,2]
[324795625,1714335100085,-914.96,0.00012328,2]
[324795626,1714335100095,-556.03,0.00012328,2]
[324795627,1714335100105,-500.0,0.00012328,2]
[324795628,1714335100115,-500.0,0.00012328,2]
[324795629,1714335100125,-2110.76,0.00012328,2]
[324795630,1714335100135,-500.0,0.00012328,2]
[324795631,1714335100144,-500.0,0.00012328,2]
[324795632,1714335100154,-296.37352675,0.00012328,2]
[324795633,1714335100164,-4413.77,0.00012328,2]
[324795634,1714335100173,-162.373722,0.00012328,2]
[324795635,1714335100185,-660.54,0.00012328,2]
[324795636,1714335100196,-1063.45,0.00012328,2]
[324795637,1714335100207,-151.0,0.00012328,2]
[324795638,1714335100217,-162.373722,0.00012328,2]
[324795639,1714335100229,-500.0,0.00012328,2]
[324795640,1714335100242,-10713.43,0.00012328,2]
[324795641,1714335100252,-500.0,0.00012328,2]
[324795642,1714335100263,-500.0,0.00012328,2]
[324795643,1714335100272,-151.0,0.00012328,2]
[324795644,1714335100284,-500.0,0.00012328,2]
[324795645,1714335100294,-777.04,0.00012328,2]
[324795646,1714335100304,-500.0,0.00012328,2]
[324795647,1714335100314,-584.78,0.00012328,2]
[324795648,1714335100324,-2092.03,0.00012328,2]
[324795649,1714335100335,-2059.96,0.00012328,2]
[324795650,1714335100344,-500.0,0.00012328,2]
[324795651,1714335100355,-674.68,0.00012328,2]
[324795652,1714335100366,-6179.61,0.00012328,2]
[324795653,1714335100376,-7807.56,0.00012328,2]
[324795654,1714335100390,-1071.510703,0.00012328,2]
[324795655,1714335100401,-1585.49,0.00012328,2]
[324795656,1714335100412,-522.18,0.00012328,2]
[324795657,1714335100423,-500.0,0.00012328,2]
[324795658,1714335100436,-644.87,0.00012328,2]
[324795659,1714335100446,-500.0,0.00012328,2]
[324795660,1714335100455,-1071.510703,0.00012328,2]
[324795661,1714335100465,-1634.43,0.00012328,2]
[324795662,1714335100477,-500.0,0.00012328,2]
[324795663,1714335100488,-270.937038,0.00012328,2]
[324795664,1714335100498,-500.0,0.00012328,2]
[324795665,1714335100508,-889.84,0.00012328,2]
[324795666,1714335100518,-1305.51,0.00012328,2]
[324795667,1714335100528,-500.0,0.00012328,2]
[324795668,1714335100538,-500.0,0.00012328,2]
[324795669,1714335100548,-7923.02,0.00012328,2]
[324795670,1714335100558,-560.52,0.00012328,2]
[324795671,1714335100568,-270.937038,0.00012328,2]
[324795672,1714335100577,-7586.52,0.00012328,2]
[324795673,1714335100587,-590.45,0.00012328,2]
[324795674,1714335100597,-388.23145716,0.00012328,2]
[324795675,1714335100607,-500.0,0.00012328,2]
[324795676,1714335100616,-500.0,0.00012328,2]
[324795677,1714335100626,-2933.808158,0.00012328,2]
[324795678,1714335100638,-585.65,0.00012328,2]
[324795679,1714335100648,-623.14,0.00012328,2]
[324795680,1714335100658,-2052.98,0.00012328,2]
[324795681,1714335100668,-679.49,0.00012328,2]
[324795682,1714335100677,-585.79,0.00012328,2]
[324795683,1714335100688,-5227.15,0.00012328,2]
[324795684,1714335100698,-550.705949,0.00012328,2]
[324795685,1714335100712,-2933.808158,0.00012328,2]
[324795686,1714335100723,-503.52107959,0.00012328,2]
[324795687,1714335100733,-1925.76,0.00012328,2]
[324795688,1714335100742,-500.0,0.00012328,2]
[324795689,1714335100752,-3698.54,0.00012328,2]
[324795690,1714335100762,-500.0,0.00012328,2]
[324795691,1714335100772,-1470.84,0.00012328,2]
[324795692,1714335100782,-911.54,0.00012328,2]
[324795693,1714335100791,-537.76,0.00012328,2]
[324795694,1714335100801,-1419.51,0.00012328,2]
[324795695,1714335100811,-321.367418,0.00012328,2]
[324795696,1714335100821,-160.800213,0.00012328,2]
[324795697,1714335100831,-500.0,0.00012328,2]
[324795698,1714335100840,-550.705949,0.00012328,2]
[324795699,1714335100851,-318.996419,0.00012328,2]
[324795700,1714335100860,-533.42,0.00012328,2]
[324795701,1714335100870,-854.24,0.00012328,2]
[324795702,1714335100880,-1077.75,0.00012328,2]
[324795703,1714335100890,-321.367418,0.00012328,2]
[324795704,1714335100901,-151.0,0.00012328,2]
[324795705,1714335100911,-500.0,0.00012328,2]
[324795706,1714335100923,-318.996419,0.00012328,2]
[324795707,1714335100934,-2717.25,0.00012328,2]
[324795708,1714335100944,-530.39,0.00012328,2]
[324795709,1714335100954,-4094.38,0.00012328,2]
[324795710,1714335100964,-500.0,0.00012328,2]
[324795711,1714335100974,-579.048538,0.00012328,2]
[324795712,1714335100984,-947.74,0.00012328,2]
[324795713,1714335100999,-1974.12,0.00012328,2]
[324795714,1714335101009,-579.048538,0.00012328,2]
[324795715,1714335101019,-1503.79,0.00012328,2]
[324795716,1714335101029,-1354.91,0.00012328,2]
[324795717,1714335101040,-1990.76,0.00012328,2]
[324795718,1714335101275,-649.40708561,0.00012328,2]
[324795719,1714335101327,-2218.47,0.00012328,2]
[324795720,1714335101336,-500.0,0.00012328,2]
[324795721,1714335101346,-1792.37,0.00012328,2]
[324795722,1714335101356,-989.54,0.00012328,2]
[324795723,1714335101366,-1852.44,0.00012328,2]
[324795724,1714335101375,-500.0,0.00012328,2]
[324795725,1714335101384,-151.0,0.00012328,2]
[324795726,1714335101398,-2057.04,0.00012328,2]
[324795727,1714335101407,-511.72,0.00012328,2]
[324795728,1714335101417,-500.0,0.00012328,2]
[324795729,1714335101427,-500.0,0.00012328,2]
[324795730,1714335101438,-879.95,0.00012328,2]
[324795731,1714335101448,-6407.06,0.00012328,2]
[324795732,1714335101458,-664.66,0.00012328,2]
[324795733,1714335101471,-2262.97,0.00012328,2]
[324795734,1714335101481,-3147.07,0.00012328,2]
[324795735,1714335101492,-426.636916,0.00012328,2]
[324795736,1714335101502,-2302.016395,0.00012328,2]
[324795737,1714335101512,-1216.68,0.00012328,2]
[324795738,1714335101521,-500.0,0.00012328,2]
[324795739,1714335101530,-676.6,0.00012328,2]
[324795740,1714335101540,-500.0,0.00012328,2]
[324795741,1714335101550,-518.32,0.00012328,2]
[324795742,1714335101559,-220.022233,0.00012328,2]
[324795743,1714335101568,-1929.79,0.00012328,2]
[324795744,1714335101578,-426.636916,0.00012328,2]
[324795745,1714335101588,-2302.016395,0.00012328,2]
[324795746,1714335101597,-500.0,0.00012328,2]
[324795747,1714335101606,-500.0,0.00012328,2]
[324795748,1714335101616,-3019.82,0.00012328,2]
[324795749,1714335101625,-220.022233,0.00012328,2]
[324795750,1714335101635,-1079.35,0.00012328,2]
[324795751,1714335101644,-500.0,0.00012328,2]
[324795752,1714335101654,-3348.29,0.00012328,2]
[324795753,1714335101664,-604.29,0.00012328,2]
[324795754,1714335101674,-823.29,0.00012328,2]
[324795755,1714335101683,-500.0,0.00012328,2]
[324795756,1714335101693,-563.66,0.00012328,2]
[324795757,1714335101702,-1121.23,0.00012328,2]
[324795758,1714335101712,-500.0,0.00012328,2]
[324795759,1714335101723,-6639.12,0.00012328,2]
[324795760,1714335101732,-500.0,0.00012328,2]
[324795761,1714335101743,-214.19,0.00012328,2]
[324795762,1714335101752,-500.0,0.00012328,2]
[324795763,1714335101762,-1327.37,0.00012328,2]
[324795764,1714335101773,-542.65,0.00012328,2]
[324795765,1714335101783,-500.0,0.00012328,2]
[324795766,1714335101793,-1829.171623,0.00012328,2]
[324795767,1714335101803,-764.49,0.00012328,2]
[324795768,1714335101813,-1249.42,0.00012328,2]
[324795769,1714335101823,-1122.94,0.00012328,2]
[324795770,1714335101833,-1402.910597,0.00012328,2]
[324795771,1714335101843,-175.7913494,0.00012328,2]
[324795772,1714335101852,-619.83,0.00012328,2]
[324795773,1714335101862,-2202.24,0.00012328,2]
[324795774,1714335101872,-365.581841,0.00012328,2]
[324795775,1714335101882,-823.96,0.00012328,2]
[324795776,1714335101892,-1829.171623,0.00012328,2]
[324795777,1714335101901,-500.0,0.00012328,2]
[324795778,1714335101911,-1402.910597,0.00012328,2]
[324795779,1714335101921,-365.581841,0.00012328,2]
[324795780,1714335101930,-2697.02,0.00012328,2]
[324795781,1714335101940,-2085.16,0.00012328,2]
[324795782,1714335101950,-500.0,0.00012328,2]
[324795783,1714335101959,-532.18,0.00012328,2]
[324795784,1714335101970,-500.0,0.00012328,2]
[324795785,1714335101980,-604.10342295,0.00012328,2]
[324795786,1714335101991,-500.0,0.00012328,2]
[324795787,1714335102001,-2495.22,0.00012328,2]
[324795788,1714335102011,-221.722352,0.00012328,2]
[324795789,1714335102021,-500.0,0.00012328,2]
[324795790,1714335102030,-2332.66,0.00012328,2]
[324795791,1714335102040,-500.0,0.00012328,2]
[324795792,1714335102050,-500.0,0.00012328,2]
[324795793,1714335102059,-1688.86,0.00012328,2]
[324795794,1714335102069,-221.722352,0.00012328,2]
[324795795,1714335102078,-500.0,0.00012328,2]
[324795796,1714335102088,-500.0,0.00012328,2]
[324795797,1714335102098,-302.45782,0.00012328,2]
[324795798,1714335102107,-547.1,0.00012328,2]
[324795799,1714335102116,-724.01,0.00012328,2]
[324795800,1714335102127,-1499.38,0.00012328,2]
[324795801,1714335102136,-5656.14,0.00012328,2]
[324795802,1714335102145,-3315.89,0.00012328,2]
[324795803,1714335102155,-302.45782,0.00012328,2]
[324795804,1714335102165,-938.48,0.00012328,2]
[324795805,1714335102175,-500.0,0.00012328,2]
[324795806,1714335102184,-2106.68,0.00012328,2]
[324795807,1714335102194,-594.41,0.00012328,2]
[324795808,1714335102204,-607.53,0.00012328,2]
[324795809,1714335102213,-500.0,0.00012328,2]
[324795810,1714335102223,-931.18,0.00012328,2]
[324795811,1714335102233,-500.0,0.00012328,2]
[324795812,1714335102243,-500.0,0.00012328,2]
[324795813,1714335102252,-500.0,0.00012328,2]
[324795814,1714335102262,-500.0,0.00012328,2]
[324795815,1714335102271,-500.0,0.00012328,2]
[324795816,1714335102281,-500.0,0.00012328,2]
[324795817,1714335102291,-500.0,0.00012328,2]
[324795818,1714335102301,-2112.21,0.00012328,2]
[324795819,1714335102310,-4585.17,0.00012328,2]
[324795820,1714335102320,-500.0,0.00012328,2]
[324795821,1714335102330,-765.05,0.00012328,2]
[324795822,1714335102339,-500.0,0.00012328,2]
[324795823,1714335102349,-151.0,0.00012328,2]
[324795824,1714335102360,-936.743565,0.00012328,2]
[324795825,1714335102369,-500.0,0.00012328,2]
[324795826,1714335102379,-500.0,0.00012328,2]
[324795827,1714335102392,-500.0,0.00012328,2]
[324795828,1714335102402,-500.0,0.00012328,2]
[324795829,1714335102412,-500.0,0.00012328,2]
[324795830,1714335102421,-500.0,0.00012328,2]
[324795831,1714335102431,-936.743565,0.00012328,2]
[324795832,1714335102441,-500.0,0.00012328,2]
[324795833,1714335102451,-2210.179829,0.00012328,2]
[324795834,1714335102462,-500.0,0.00012328,2]
[324795835,1714335102472,-2559.64,0.00012328,2]
[324795836,1714335102482,-500.0,0.00012328,2]
[324795837,1714335102492,-151.0,0.00012328,2]
[324795838,1714335102502,-500.0,0.00012328,2]
[324795839,1714335102512,-2210.179829,0.00012328,2]
[324795840,1714335102521,-500.0,0.00012328,2]
[324795841,1714335102531,-500.0,0.00012328,2]
[324795842,1714335102540,-637.36,0.00012328,2]
[324795843,1714335102550,-1000.0,0.00012329,2]
[324795844,1714335102560,-560.0,0.00012329,2]
[324795845,1714335102569,-4641.66724063,0.00012418,2]
[324795846,1714335102579,-1395.0,0.00012497,2]
[324795847,1714335102588,-2297.0,0.00012497,2]
[324795848,1714335102597,-970.0,0.00012497,2]
[324795849,1714335102607,-462.0,0.00012497,2]
[324795850,1714335102616,-542.0,0.00012497,2]
[324795851,1714335102625,-1257.0,0.00012497,2]
[324795852,1714335102635,-1228.0,0.00012497,2]
[324795853,1714335102644,-510.398,0.00012497,2]
[324795854,1714335102653,-808.0,0.00012497,2]
[324795855,1714335102662,-1858.0,0.00012497,2]
[324795856,1714335102671,-610.0,0.00012497,2]
[324795857,1714335102680,-3131.0,0.00012497,2]
[324795858,1714335102690,-402.0,0.00012497,2]
[324795859,1714335102699,-2445.0,0.00012497,2]
[324795860,1714335102708,-151.071,0.00012497,2]
[324795861,1714335102717,-1478.334,0.00012497,2]
[324795862,1714335102727,-150.855,0.00012497,2]
[324795863,1714335102736,-1640.0,0.00012497,2]
[324795864,1714335102746,-214.0,0.00012497,2]
[324795865,1714335102756,-444.492,0.00012497,2]
[324795866,1714335102765,-1139.0,0.00012497,2]
[324795867,1714335102774,-151.0,0.00012497,2]
[324795868,1714335102784,-151.0,0.00012497,2]
[324795869,1714335102793,-801.118966,0.00012497,2]
[324795870,1714335102803,-151.0,0.00012497,2]
[324795871,1714335102813,-151.0,0.00012497,2]
[324795872,1714335102823,-1000.0,0.000125,3]
[324795873,1714335102833,-1000.0,0.000125,3]
[324795874,1714335102843,-552.31,0.00012545,2]
[324795875,1714335102853,-4641.66724063,0.00012579,2]
[324795876,1714335102863,-150.0,0.000126,3]
[324795877,1714335102872,-12054.64145863,0.00012601,2]
[324795878,1714335102883,-2934.53,0.00012601,2]
[324795879,1714335102893,-500.0,0.00012601,2]
[324795880,1714335102903,-1163.14,0.00012601,2]
[324795881,1714335102912,-14857.67,0.00012602,2]
[324795882,1714335102923,-500.0,0.00012602,2]
[324795883,1714335102933,-500.0,0.00012602,2]
[324795884,1714335102943,-500.0,0.00012602,2]
[324795885,1714335102953,-500.0,0.00012602,2]
[324795886,1714335102962,-500.0,0.00012602,2]
[324795887,1714335102972,-500.0,0.00012602,2]
[324795888,1714335102982,-336.56,0.00012602,2]
[324795889,1714335102992,-500.0,0.00012602,2]
[324795890,1714335103002,-199.32,0.00012602,2]
[324795891,1714335103012,-500.0,0.00012602,2]
[324795892,1714335103022,-500.0,0.00012602,2]
[324795893,1714335103031,-500.0,0.00012602,2]
[324795894,1714335103040,-500.0,0.00012602,2]
[324795895,1714335103050,-500.0,0.00012602,2]
[324795896,1714335103059,-500.0,0.00012602,2]
[324795897,1714335103068,-500.0,0.00012602,2]
[324795898,1714335103078,-500.0,0.00012602,2]
[324795899,1714335103088,-500.0,0.00012602,2]
[324795900,1714335103098,-500.0,0.00012602,2]
[324795901,1714335103107,-500.0,0.00012602,2]
[324795902,1714335103117,-500.0,0.00012602,2]
[324795903,1714335103127,-500.0,0.00012602,2]
[324795904,1714335103136,-500.0,0.00012602,2]
[324795905,1714335103146,-500.0,0.00012602,2]
[324795906,1714335103156,-712.87,0.00012602,2]
[324795907,1714335103165,-500.0,0.00012602,2]
[324795908,1714335103174,-500.0,0.00012602,2]
[324795909,1714335103184,-500.0,0.00012602,2]
[324795910,1714335103193,-500.0,0.00012602,2]
[324795911,1714335103202,-528.85,0.00012602,2]
[324795912,1714335103212,-500.0,0.00012602,2]
[324795913,1714335103221,-500.0,0.00012602,2]
[324795914,1714335103231,-500.0,0.00012602,2]
[324795915,1714335103242,-600.29,0.00012602,2]
[324795916,1714335103251,-528.41,0.00012602,2]
[324795917,1714335103260,-500.0,0.00012602,2]
[324795918,1714335103270,-500.0,0.00012602,2]
[324795919,1714335103279,-521.76,0.00012602,2]
[324795920,1714335103288,-500.0,0.00012602,2]
[324795921,1714335103298,-500.0,0.00012602,2]
[324795922,1714335103308,-552.84,0.00012602,2]
[324795923,1714335103317,-202.82,0.00012602,2]
[324795924,1714335103328,-500.0,0.00012602,2]
[324795925,1714335103338,-200.17,0.00012602,2]
[324795926,1714335103347,-553.62,0.00012602,2]
[324795927,1714335103357,-500.0,0.00012602,2]
[324795928,1714335103367,-500.0,0.00012602,2]
[324795929,1714335103377,-558.84,0.00012602,2]
[324795930,1714335103390,-718.95,0.00012602,2]
[324795931,1714335103400,-500.0,0.00012602,2]
[324795932,1714335103410,-548.37,0.00012602,2]
[324795933,1714335103419,-522.08,0.00012602,2]
[324795934,1714335103431,-276.12,0.00012602,2]
[324795935,1714335103440,-500.0,0.00012602,2]
[324795936,1714335103450,-500.0,0.00012602,2]
[324795937,1714335103460,-500.0,0.00012602,2]
[324795938,1714335103473,-500.0,0.00012602,2]
[324795939,1714335103483,-569.87,0.00012602,2]
[324795940,1714335103495,-535.18,0.00012602,2]
[324795941,1714335103505,-604.05,0.00012602,2]
[324795942,1714335103514,-500.0,0.00012602,2]
[324795943,1714335103523,-500.0,0.00012602,2]
[324795944,1714335103532,-659.69,0.00012602,2]
[324795945,1714335103542,-500.0,0.00012602,2]